[Event "Titled Tuesday Blitz November 15 Early 2022"]
[White "Firouzja, Alireza"]
[Black "Svane, Rasmus"]
[WhiteFideId "12573981"]
[BlackFideId "4657101"]
[WhiteElo "2903"]
[BlackElo "2674"]
[Result "1-0"]
[Round "08"]
[TimeControl "180+1"]
[Date "2022.11.15"]
[WhiteClock "0:02:05"]
[BlackClock "0:00:38"]

1. d4 {[%clk 0:03:00]}  Nf6 {[%clk 0:02:59]} 2. Bg5 {[%clk 0:03:01]}  d5 {[%clk 0:02:59]} 3. e3 {[%clk 0:03:01]}  c5 {[%clk 0:02:59]} 4. Bxf6 {[%clk 0:03:01]}  gxf6 {[%clk 0:03:00]} 5. dxc5 {[%clk 0:03:01]}  e6 {[%clk 0:02:54]} 6. c4 {[%clk 0:03:02]}  dxc4 {[%clk 0:02:54]} 7. Nd2 {[%clk 0:03:02]}  c3 {[%clk 0:02:47]} 8. bxc3 {[%clk 0:03:02]}  Nd7 {[%clk 0:02:48]} 9. c6 {[%clk 0:02:44]}  bxc6 {[%clk 0:02:49]} 10. Ngf3 {[%clk 0:02:44]}  Bg7 {[%clk 0:02:48]} 11. Be2 {[%clk 0:02:44]}  O-O {[%clk 0:02:48]} 12. O-O {[%clk 0:02:44]}  c5 {[%clk 0:02:44]} 13. Rb1 {[%clk 0:02:42]}  f5 {[%clk 0:02:43]} 14. Qc2 {[%clk 0:02:42]}  Qc7 {[%clk 0:02:42]} 15. e4 {[%clk 0:02:36]}  fxe4 {[%clk 0:02:41]} 16. Qxe4 {[%clk 0:02:33]}  Rb8 {[%clk 0:02:39]} 17. Bd3 {[%clk 0:02:32]}  Nf6 {[%clk 0:02:34]} 18. Qh4 {[%clk 0:02:33]}  Rxb1 {[%clk 0:02:25]} 19. Bxb1 {[%clk 0:02:34]}  Bb7 {[%clk 0:02:19]} 20. Re1 {[%clk 0:02:34]}  Rd8 {[%clk 0:02:12]} 21. Nc4 {[%clk 0:02:16]}  h6 {[%clk 0:01:53]} 22. Nfe5 {[%clk 0:02:14]}  Bd5 {[%clk 0:01:33]} 23. h3 {[%clk 0:02:13]}  Rb8 {[%clk 0:01:24]} 24. Bd3 {[%clk 0:02:09]}  Nd7 {[%clk 0:01:20]} 25. Qe7 {[%clk 0:02:07]}  Bxe5 {[%clk 0:01:04]} 26. Nxe5 {[%clk 0:02:04]}  Qxe5 {[%clk 0:01:02]} 27. Rxe5 {[%clk 0:02:04]}  Nxe5 {[%clk 0:01:03]} 28. Qd6 {[%clk 0:02:04]}  Nc6 {[%clk 0:00:38]} 29. c4 {[%clk 0:02:05]}  Rd8 {[%clk 0:00:38]} 30. Qg3+ {[%clk 0:02:05]} 1-0


[Site "https://www.chess.com"]

[Event "Titled Tuesday Blitz November 15 Early 2022"]
[White "Flis, Pawel"]
[Black "Manon-og, Ramon Jr."]
[WhiteFideId "1112864"]
[BlackFideId "5200776"]
[WhiteElo "1817"]
[BlackElo "2302"]
[Result "0-1"]
[Round "08"]
[TimeControl "180+1"]
[Date "2022.11.16"]
[WhiteClock "0:01:17"]
[BlackClock "0:01:31"]

1. e4 {[%clk 0:02:56]}  c5 {[%clk 0:02:59]} 2. Nf3 {[%clk 0:02:55]}  d6 {[%clk 0:02:59]} 3. d4 {[%clk 0:02:56]}  cxd4 {[%clk 0:03:00]} 4. Nxd4 {[%clk 0:02:56]}  Nf6 {[%clk 0:03:01]} 5. Nc3 {[%clk 0:02:57]}  a6 {[%clk 0:03:01]} 6. Bg5 {[%clk 0:02:57]}  e6 {[%clk 0:03:01]} 7. f4 {[%clk 0:02:57]}  Be7 {[%clk 0:03:01]} 8. Qf3 {[%clk 0:02:57]}  Qc7 {[%clk 0:03:01]} 9. O-O-O {[%clk 0:02:57]}  Nbd7 {[%clk 0:02:53]} 10. Bd3 {[%clk 0:02:56]}  h6 {[%clk 0:02:52]} 11. Bh4 {[%clk 0:02:54]}  b5 {[%clk 0:02:48]} 12. e5 {[%clk 0:02:28]}  Bb7 {[%clk 0:02:48]} 13. Nxe6 {[%clk 0:02:26]}  fxe6 {[%clk 0:02:46]} 14. Bg6+ {[%clk 0:02:25]}  Kf8 {[%clk 0:02:44]} 15. exf6 {[%clk 0:02:07]}  Bxf3 {[%clk 0:02:01]} 16. fxe7+ {[%clk 0:02:07]}  Kg8 {[%clk 0:02:02]} 17. gxf3 {[%clk 0:02:07]}  Nf6 {[%clk 0:01:58]} 18. Bxf6 {[%clk 0:01:53]}  gxf6 {[%clk 0:01:57]} 19. Rhg1 {[%clk 0:01:52]}  Qxe7 {[%clk 0:01:50]} 20. Be4+ {[%clk 0:01:48]}  Kf7 {[%clk 0:01:50]} 21. Bxa8 {[%clk 0:01:48]}  Rxa8 {[%clk 0:01:50]} 22. Ne4 {[%clk 0:01:37]}  d5 {[%clk 0:01:50]} 23. Nf2 {[%clk 0:01:34]}  Qc5 {[%clk 0:01:48]} 24. Ng4 {[%clk 0:01:22]}  Rh8 {[%clk 0:01:33]} 25. Rde1 {[%clk 0:01:22]}  h5 {[%clk 0:01:31]} 26. Nf2 {[%clk 0:01:17]}  Qxf2 {[%clk 0:01:31]} 0-1


[Site "https://www.chess.com"]

[Event "Titled Tuesday Blitz November 15 Early 2022"]
[White "Forgacs, Attila Jr."]
[Black "Szente Varga, Fruzsina"]
[WhiteFideId "773654"]
[BlackFideId "712264"]
[WhiteElo "2168"]
[BlackElo "1994"]
[Result "1-0"]
[Round "08"]
[TimeControl "180+1"]
[Date "2022.11.16"]
[WhiteClock "0:01:01"]
[BlackClock "0:00:05"]

1. e4 {[%clk 0:03:00]}  e5 {[%clk 0:02:58]} 2. Nf3 {[%clk 0:03:00]}  Nc6 {[%clk 0:02:59]} 3. Bb5 {[%clk 0:03:01]}  a6 {[%clk 0:02:59]} 4. Ba4 {[%clk 0:03:02]}  Nf6 {[%clk 0:02:59]} 5. O-O {[%clk 0:03:02]}  Be7 {[%clk 0:03:00]} 6. Re1 {[%clk 0:03:02]}  b5 {[%clk 0:03:01]} 7. Bb3 {[%clk 0:03:03]}  O-O {[%clk 0:03:01]} 8. a4 {[%clk 0:03:03]}  b4 {[%clk 0:03:01]} 9. d3 {[%clk 0:03:03]}  d6 {[%clk 0:02:59]} 10. Nbd2 {[%clk 0:03:04]}  Be6 {[%clk 0:02:56]} 11. Nc4 {[%clk 0:03:04]}  Nd4 {[%clk 0:02:49]} 12. Nxd4 {[%clk 0:03:01]}  exd4 {[%clk 0:02:50]} 13. h3 {[%clk 0:02:52]}  Nd7 {[%clk 0:02:31]} 14. f4 {[%clk 0:02:48]}  Bh4 {[%clk 0:02:15]} 15. Rf1 {[%clk 0:02:41]}  Nc5 {[%clk 0:01:43]} 16. f5 {[%clk 0:02:24]}  Nxb3 {[%clk 0:01:38]} 17. cxb3 {[%clk 0:02:21]}  Bc8 {[%clk 0:01:16]} 18. Qh5 {[%clk 0:02:17]}  Bf6 {[%clk 0:01:15]} 19. Bf4 {[%clk 0:02:11]}  Re8 {[%clk 0:01:12]} 20. Rae1 {[%clk 0:02:10]}  Bb7 {[%clk 0:01:10]} 21. g4 {[%clk 0:02:09]}  g6 {[%clk 0:00:59]} 22. fxg6 {[%clk 0:02:09]}  hxg6 {[%clk 0:00:59]} 23. Qh6 {[%clk 0:01:59]}  Bg7 {[%clk 0:00:59]} 24. Qg5 {[%clk 0:01:58]}  Qxg5 {[%clk 0:01:00]} 25. Bxg5 {[%clk 0:01:58]}  d5 {[%clk 0:01:00]} 26. Na5 {[%clk 0:01:43]}  Rab8 {[%clk 0:00:40]} 27. Nxb7 {[%clk 0:01:42]}  Rxb7 {[%clk 0:00:41]} 28. exd5 {[%clk 0:01:43]}  Rxe1 {[%clk 0:00:28]} 29. Rxe1 {[%clk 0:01:44]}  f6 {[%clk 0:00:28]} 30. Bf4 {[%clk 0:01:43]}  Kf7 {[%clk 0:00:28]} 31. Re6 {[%clk 0:01:39]}  Bf8 {[%clk 0:00:26]} 32. Rxa6 {[%clk 0:01:37]}  g5 {[%clk 0:00:19]} 33. Bg3 {[%clk 0:01:37]}  Be7 {[%clk 0:00:19]} 34. Rc6 {[%clk 0:01:36]}  Bd8 {[%clk 0:00:18]} 35. Kg2 {[%clk 0:01:28]}  Ke7 {[%clk 0:00:15]} 36. Kf3 {[%clk 0:01:25]}  Kd7 {[%clk 0:00:16]} 37. Ke4 {[%clk 0:01:23]}  Be7 {[%clk 0:00:14]} 38. Kxd4 {[%clk 0:01:20]}  Bd6 {[%clk 0:00:13]} 39. Bxd6 {[%clk 0:01:19]}  cxd6 {[%clk 0:00:14]} 40. a5 {[%clk 0:01:15]}  Rb8 {[%clk 0:00:12]} 41. Rb6 {[%clk 0:01:09]}  Rh8 {[%clk 0:00:10]} 42. Rb7+ {[%clk 0:01:03]}  Kc8 {[%clk 0:00:10]} 43. a6 {[%clk 0:01:03]}  Rxh3 {[%clk 0:00:06]} 44. Rf7 {[%clk 0:01:03]}  Kb8 {[%clk 0:00:05]} 45. Rxf6 {[%clk 0:01:01]}  Rg3 {[%clk 0:00:05]} 46. Rxd6 {[%clk 0:01:00]}  Rxg4+ {[%clk 0:00:05]} 47. Kc5 {[%clk 0:01:01]}  Ka7 {[%clk 0:00:06]} 48. Kb5 {[%clk 0:01:00]}  Rg1 {[%clk 0:00:05]} 49. Rd7+ {[%clk 0:01:01]}  Ka8 {[%clk 0:00:05]} 50. Kb6 {[%clk 0:01:01]} 1-0


[Site "https://www.chess.com"]

[Event "Titled Tuesday Blitz November 15 Early 2022"]
[White "Gabrielian, Artur"]
[Black "Fedoseev, Vladimir"]
[WhiteFideId "4131002"]
[BlackFideId "24130737"]
[WhiteElo "2432"]
[BlackElo "2726"]
[Result "0-1"]
[Round "08"]
[TimeControl "180+1"]
[Date "2022.11.15"]
[WhiteClock "0:00:01"]
[BlackClock "0:00:15"]

1. e4 {[%clk 0:03:00]}  c6 {[%clk 0:02:59]} 2. d4 {[%clk 0:03:00]}  d5 {[%clk 0:02:59]} 3. e5 {[%clk 0:03:01]}  Bf5 {[%clk 0:02:58]} 4. h4 {[%clk 0:03:01]}  h6 {[%clk 0:02:57]} 5. g4 {[%clk 0:03:00]}  Be4 {[%clk 0:02:57]} 6. f3 {[%clk 0:03:00]}  Bh7 {[%clk 0:02:56]} 7. Nc3 {[%clk 0:02:58]}  e6 {[%clk 0:02:55]} 8. Be3 {[%clk 0:02:57]}  Nd7 {[%clk 0:02:42]} 9. f4 {[%clk 0:02:56]}  h5 {[%clk 0:02:37]} 10. gxh5 {[%clk 0:02:53]}  Nh6 {[%clk 0:02:34]} 11. Nf3 {[%clk 0:02:51]}  Be7 {[%clk 0:02:30]} 12. Ng5 {[%clk 0:02:50]}  Bf5 {[%clk 0:02:28]} 13. Be2 {[%clk 0:02:46]}  Qb6 {[%clk 0:02:20]} 14. Qd2 {[%clk 0:02:33]}  Qxb2 {[%clk 0:01:53]} 15. Rb1 {[%clk 0:02:32]}  Qa3 {[%clk 0:01:52]} 16. Rg1 {[%clk 0:01:24]}  b5 {[%clk 0:01:46]} 17. Kf2 {[%clk 0:00:53]}  b4 {[%clk 0:01:40]} 18. Nd1 {[%clk 0:00:53]}  Qxa2 {[%clk 0:01:36]} 19. Nb2 {[%clk 0:00:51]}  Nb6 {[%clk 0:01:22]} 20. Nd3 {[%clk 0:00:24]}  Nc4 {[%clk 0:01:18]} 21. Qc1 {[%clk 0:00:25]}  Qa3 {[%clk 0:01:04]} 22. Ra1 {[%clk 0:00:16]}  Qxc1 {[%clk 0:01:02]} 23. Rgxc1 {[%clk 0:00:17]}  a5 {[%clk 0:00:53]} 24. Nc5 {[%clk 0:00:14]}  Ng4+ {[%clk 0:00:48]} 25. Bxg4 {[%clk 0:00:14]}  Bxg4 {[%clk 0:00:49]} 26. Rcb1 {[%clk 0:00:09]}  Bxc5 {[%clk 0:00:45]} 27. dxc5 {[%clk 0:00:09]}  Ke7 {[%clk 0:00:45]} 28. Bd4 {[%clk 0:00:09]}  Bf5 {[%clk 0:00:44]} 29. Rc1 {[%clk 0:00:08]}  Rxh5 {[%clk 0:00:36]} 30. Nf3 {[%clk 0:00:08]}  Rhh8 {[%clk 0:00:36]} 31. Rg1 {[%clk 0:00:07]}  g6 {[%clk 0:00:34]} 32. Rgc1 {[%clk 0:00:02]}  Rhb8 {[%clk 0:00:32]} 33. Ra4 {[%clk 0:00:02]}  Na3 {[%clk 0:00:29]} 34. c3 {[%clk 0:00:02]}  Bc2 {[%clk 0:00:28]} 35. Rxa3 {[%clk 0:00:01]}  bxa3 {[%clk 0:00:28]} 36. Rxc2 {[%clk 0:00:02]}  Rb2 {[%clk 0:00:28]} 37. Ne1 {[%clk 0:00:02]}  Rab8 {[%clk 0:00:26]} 38. c4 {[%clk 0:00:01]}  dxc4 {[%clk 0:00:21]} 39. Ke3 {[%clk 0:00:01]}  R8b3+ {[%clk 0:00:20]} 40. Ke4 {[%clk 0:00:01]}  Rxc2 {[%clk 0:00:14]} 41. Nxc2 {[%clk 0:00:02]}  a2 {[%clk 0:00:15]} 42. Na1 {[%clk 0:00:01]}  Rh3 {[%clk 0:00:15]} 0-1


[Site "https://www.chess.com"]

[Event "Titled Tuesday Blitz November 15 Early 2022"]
[White "Gedgafov, Chamal"]
[Black "Dehtiarov, Roman"]
[WhiteFideId "34130621"]
[BlackFideId "14186640"]
[WhiteElo "2067"]
[BlackElo "2200"]
[Result "0-1"]
[Round "08"]
[TimeControl "180+1"]
[Date "2022.11.16"]
[WhiteClock "0:01:11"]
[BlackClock "0:01:28"]

1. d4 {[%clk 0:02:45]}  Nf6 {[%clk 0:02:58]} 2. Nf3 {[%clk 0:02:45]}  d5 {[%clk 0:02:58]} 3. Bf4 {[%clk 0:02:45]}  e6 {[%clk 0:02:56]} 4. e3 {[%clk 0:02:45]}  c5 {[%clk 0:02:54]} 5. c3 {[%clk 0:02:45]}  Qb6 {[%clk 0:02:52]} 6. Qb3 {[%clk 0:02:45]}  c4 {[%clk 0:02:52]} 7. Qc2 {[%clk 0:02:46]}  Nc6 {[%clk 0:02:52]} 8. Nbd2 {[%clk 0:02:46]}  Nh5 {[%clk 0:02:52]} 9. Bg3 {[%clk 0:02:46]}  g6 {[%clk 0:02:52]} 10. e4 {[%clk 0:02:45]}  Bg7 {[%clk 0:02:50]} 11. exd5 {[%clk 0:02:42]}  exd5 {[%clk 0:02:51]} 12. Bxc4 {[%clk 0:02:37]}  Nxg3 {[%clk 0:02:47]} 13. hxg3 {[%clk 0:02:37]}  dxc4 {[%clk 0:02:47]} 14. Nxc4 {[%clk 0:02:37]}  Qc7 {[%clk 0:02:47]} 15. O-O {[%clk 0:02:31]}  O-O {[%clk 0:02:46]} 16. Rae1 {[%clk 0:02:28]}  Be6 {[%clk 0:02:41]} 17. Ne3 {[%clk 0:02:22]}  Rfd8 {[%clk 0:02:39]} 18. Rd1 {[%clk 0:02:17]}  Ne7 {[%clk 0:02:30]} 19. c4 {[%clk 0:02:16]}  Rac8 {[%clk 0:02:26]} 20. b3 {[%clk 0:02:15]}  b5 {[%clk 0:02:25]} 21. Qb2 {[%clk 0:02:04]}  bxc4 {[%clk 0:02:24]} 22. bxc4 {[%clk 0:02:05]}  Nf5 {[%clk 0:02:05]} 23. Nxf5 {[%clk 0:02:01]}  Bxf5 {[%clk 0:02:05]} 24. Rc1 {[%clk 0:01:58]}  Bd3 {[%clk 0:01:59]} 25. Rfd1 {[%clk 0:01:57]}  Bxc4 {[%clk 0:01:55]} 26. Nd2 {[%clk 0:01:57]}  Bxd4 {[%clk 0:01:55]} 27. Qa3 {[%clk 0:01:38]}  Bc5 {[%clk 0:01:37]} 28. Qc3 {[%clk 0:01:17]}  Bd5 {[%clk 0:01:29]} 29. Nf3 {[%clk 0:01:14]}  Bxf2+ {[%clk 0:01:26]} 30. Kxf2 {[%clk 0:01:10]}  Qxc3 {[%clk 0:01:27]} 31. Rxc3 {[%clk 0:01:11]}  Rxc3 {[%clk 0:01:28]} 0-1


[Site "https://www.chess.com"]

[Event "Titled Tuesday Blitz November 15 Early 2022"]
[White "Goltseva, Ekaterina"]
[Black "Donchenko, Alexander"]
[WhiteFideId "24173770"]
[BlackFideId "24603295"]
[WhiteElo "2200"]
[BlackElo "2572"]
[Result "0-1"]
[Round "08"]
[TimeControl "180+1"]
[Date "2022.11.16"]
[WhiteClock "0:00:28"]
[BlackClock "0:01:32"]

1. d4 {[%clk 0:02:55]}  f5 {[%clk 0:02:59]} 2. Nf3 {[%clk 0:02:53]}  Nf6 {[%clk 0:02:59]} 3. c4 {[%clk 0:02:53]}  g6 {[%clk 0:03:00]} 4. e3 {[%clk 0:02:51]}  Bg7 {[%clk 0:03:00]} 5. b4 {[%clk 0:02:50]}  O-O {[%clk 0:03:00]} 6. Bb2 {[%clk 0:02:50]}  e6 {[%clk 0:02:59]} 7. Be2 {[%clk 0:02:48]}  Qe7 {[%clk 0:02:59]} 8. O-O {[%clk 0:02:48]}  Nc6 {[%clk 0:02:56]} 9. b5 {[%clk 0:02:41]}  Nd8 {[%clk 0:02:56]} 10. Ba3 {[%clk 0:02:38]}  d6 {[%clk 0:02:56]} 11. c5 {[%clk 0:02:38]}  Nf7 {[%clk 0:02:56]} 12. Nbd2 {[%clk 0:02:29]}  Nd5 {[%clk 0:02:54]} 13. Qb3 {[%clk 0:02:27]}  b6 {[%clk 0:02:46]} 14. Bc4 {[%clk 0:02:14]}  Bb7 {[%clk 0:02:42]} 15. c6 {[%clk 0:02:05]}  Bc8 {[%clk 0:02:42]} 16. e4 {[%clk 0:02:04]}  fxe4 {[%clk 0:02:25]} 17. Nxe4 {[%clk 0:02:04]}  a6 {[%clk 0:02:25]} 18. Bb2 {[%clk 0:01:52]}  axb5 {[%clk 0:02:25]} 19. Bxb5 {[%clk 0:01:53]}  Ba6 {[%clk 0:02:23]} 20. a4 {[%clk 0:01:51]}  Ra7 {[%clk 0:02:15]} 21. Rae1 {[%clk 0:01:46]}  Bxb5 {[%clk 0:02:13]} 22. axb5 {[%clk 0:01:45]}  Ra5 {[%clk 0:02:13]} 23. Ned2 {[%clk 0:01:38]}  Qf6 {[%clk 0:02:03]} 24. Nc4 {[%clk 0:01:35]}  Ra7 {[%clk 0:02:02]} 25. Ne3 {[%clk 0:01:33]}  Nf4 {[%clk 0:01:56]} 26. Ng4 {[%clk 0:01:29]}  Qf5 {[%clk 0:01:55]} 27. Ne3 {[%clk 0:01:24]}  Qd3 {[%clk 0:01:55]} 28. Qb4 {[%clk 0:01:09]}  Ra5 {[%clk 0:01:54]} 29. Nc4 {[%clk 0:01:03]}  Nd5 {[%clk 0:01:35]} 30. Qd2 {[%clk 0:00:34]}  Qxc4 {[%clk 0:01:33]} 31. Rxe6 {[%clk 0:00:31]}  Rxb5 {[%clk 0:01:32]} 32. Rfe1 {[%clk 0:00:28]}  Qxc6 {[%clk 0:01:32]} 0-1


[Site "https://www.chess.com"]

[Event "Titled Tuesday Blitz November 15 Early 2022"]
[White "Golubev, Mikhail"]
[Black "Alfaro, William"]
[WhiteFideId "14100983"]
[BlackFideId "6100457"]
[WhiteElo "2374"]
[BlackElo "2096"]
[Result "1-0"]
[Round "08"]
[TimeControl "180+1"]
[Date "2022.11.16"]
[WhiteClock "0:01:44"]
[BlackClock "0:02:36"]

1. e4 {[%clk 0:03:00]}  c5 {[%clk 0:02:59]} 2. Nf3 {[%clk 0:03:00]}  Nc6 {[%clk 0:02:59]} 3. Nc3 {[%clk 0:03:00]}  a6 {[%clk 0:02:58]} 4. d4 {[%clk 0:02:59]}  cxd4 {[%clk 0:02:58]} 5. Nxd4 {[%clk 0:03:00]}  Nf6 {[%clk 0:02:58]} 6. Nxc6 {[%clk 0:02:44]}  bxc6 {[%clk 0:02:57]} 7. e5 {[%clk 0:02:43]}  Ng8 {[%clk 0:02:55]} 8. Bc4 {[%clk 0:02:38]}  d5 {[%clk 0:02:49]} 9. exd6 {[%clk 0:02:35]}  exd6 {[%clk 0:02:49]} 10. O-O {[%clk 0:02:35]}  Be7 {[%clk 0:02:48]} 11. Qf3 {[%clk 0:02:28]}  d5 {[%clk 0:02:46]} 12. Nxd5 {[%clk 0:02:27]}  cxd5 {[%clk 0:02:39]} 13. Bxd5 {[%clk 0:02:27]}  Ra7 {[%clk 0:02:38]} 14. Qxf7+ {[%clk 0:02:20]}  Kd7 {[%clk 0:02:38]} 15. Bf4 {[%clk 0:01:59]}  Nf6 {[%clk 0:02:36]} 16. Rad1 {[%clk 0:01:44]} 1-0


[Site "https://www.chess.com"]

[Event "Titled Tuesday Blitz November 15 Early 2022"]
[White "Gorodetzky, David"]
[Black "Mgeladze, Tamaz"]
[WhiteFideId "2813416"]
[BlackFideId "13601202"]
[WhiteElo "2497"]
[BlackElo "2288"]
[Result "0-1"]
[Round "08"]
[TimeControl "180+1"]
[Date "2022.11.15"]
[WhiteClock "0:00:11"]
[BlackClock "0:01:34"]

1. d4 {[%clk 0:01:55]}  Nf6 {[%clk 0:03:00]} 2. c4 {[%clk 0:01:53]}  g6 {[%clk 0:03:00]} 3. Nc3 {[%clk 0:01:53]}  Bg7 {[%clk 0:03:01]} 4. e4 {[%clk 0:01:53]}  O-O {[%clk 0:03:02]} 5. Be2 {[%clk 0:01:53]}  d6 {[%clk 0:03:02]} 6. Be3 {[%clk 0:01:54]}  c5 {[%clk 0:03:01]} 7. d5 {[%clk 0:01:54]}  a6 {[%clk 0:03:00]} 8. a4 {[%clk 0:01:53]}  e6 {[%clk 0:02:59]} 9. Nf3 {[%clk 0:01:54]}  exd5 {[%clk 0:02:57]} 10. cxd5 {[%clk 0:01:54]}  Bg4 {[%clk 0:02:56]} 11. Nd2 {[%clk 0:01:55]}  Bxe2 {[%clk 0:02:55]} 12. Qxe2 {[%clk 0:01:56]}  Nbd7 {[%clk 0:02:54]} 13. O-O {[%clk 0:01:56]}  Re8 {[%clk 0:02:53]} 14. Rfe1 {[%clk 0:01:48]}  Rb8 {[%clk 0:02:53]} 15. a5 {[%clk 0:01:42]}  Qc7 {[%clk 0:02:51]} 16. f3 {[%clk 0:01:39]}  h5 {[%clk 0:02:50]} 17. Nc4 {[%clk 0:01:37]}  Ne5 {[%clk 0:02:50]} 18. Nb6 {[%clk 0:01:28]}  h4 {[%clk 0:02:46]} 19. Bf2 {[%clk 0:01:21]}  h3 {[%clk 0:02:34]} 20. g4 {[%clk 0:01:21]}  c4 {[%clk 0:02:23]} 21. Red1 {[%clk 0:01:09]}  Re7 {[%clk 0:02:11]} 22. Ra4 {[%clk 0:01:09]}  Rbe8 {[%clk 0:02:07]} 23. Nxc4 {[%clk 0:01:08]}  Nxc4 {[%clk 0:02:07]} 24. Qxc4 {[%clk 0:01:07]}  Qd7 {[%clk 0:02:05]} 25. Qf1 {[%clk 0:01:02]}  Nxg4 {[%clk 0:02:03]} 26. fxg4 {[%clk 0:01:00]}  Bxc3 {[%clk 0:02:03]} 27. Rc4 {[%clk 0:00:44]}  Qxg4+ {[%clk 0:02:01]} 28. Kh1 {[%clk 0:00:35]}  Qf3+ {[%clk 0:02:00]} 29. Kg1 {[%clk 0:00:35]}  Bxb2 {[%clk 0:01:53]} 30. Rd3 {[%clk 0:00:32]}  Qf4 {[%clk 0:01:47]} 31. Qxh3 {[%clk 0:00:20]}  Rxe4 {[%clk 0:01:42]} 32. Rxe4 {[%clk 0:00:17]}  Rxe4 {[%clk 0:01:42]} 33. Rb3 {[%clk 0:00:11]}  Bd4 {[%clk 0:01:35]} 34. Rxb7 {[%clk 0:00:11]}  Qxf2+ {[%clk 0:01:34]} 0-1


[Site "https://www.chess.com"]

[Event "Titled Tuesday Blitz November 15 Early 2022"]
[White "Grandelius, Nils"]
[Black "Tregubov, Pavel V."]
[WhiteFideId "1710400"]
[BlackFideId "4115341"]
[WhiteElo "2617"]
[BlackElo "2448"]
[Result "1-0"]
[Round "08"]
[TimeControl "180+1"]
[Date "2022.11.16"]
[WhiteClock "0:00:41"]
[BlackClock "0:00:23"]

1. Nf3 {[%clk 0:03:00]}  Nf6 {[%clk 0:02:55]} 2. g3 {[%clk 0:03:00]}  c5 {[%clk 0:02:53]} 3. Bg2 {[%clk 0:02:59]}  Nc6 {[%clk 0:02:54]} 4. O-O {[%clk 0:03:00]}  d5 {[%clk 0:02:49]} 5. d4 {[%clk 0:02:58]}  cxd4 {[%clk 0:02:49]} 6. Nxd4 {[%clk 0:02:57]}  e5 {[%clk 0:02:48]} 7. Nxc6 {[%clk 0:02:58]}  bxc6 {[%clk 0:02:49]} 8. c4 {[%clk 0:02:59]}  Be6 {[%clk 0:02:46]} 9. Bg5 {[%clk 0:02:57]}  Rc8 {[%clk 0:02:45]} 10. Bxf6 {[%clk 0:02:52]}  gxf6 {[%clk 0:02:41]} 11. Qa4 {[%clk 0:02:49]}  Qd7 {[%clk 0:02:38]} 12. e3 {[%clk 0:02:46]}  d4 {[%clk 0:02:30]} 13. exd4 {[%clk 0:02:44]}  exd4 {[%clk 0:02:30]} 14. Nd2 {[%clk 0:02:43]}  c5 {[%clk 0:02:30]} 15. Qd1 {[%clk 0:02:12]}  h5 {[%clk 0:02:27]} 16. Ne4 {[%clk 0:02:01]}  Be7 {[%clk 0:02:26]} 17. Qf3 {[%clk 0:02:01]}  f5 {[%clk 0:02:23]} 18. Nd2 {[%clk 0:02:00]}  h4 {[%clk 0:02:21]} 19. Rfe1 {[%clk 0:01:58]}  Kf8 {[%clk 0:02:17]} 20. Rad1 {[%clk 0:01:53]}  Bg5 {[%clk 0:02:12]} 21. Qa3 {[%clk 0:01:46]}  Be7 {[%clk 0:02:04]} 22. Nf3 {[%clk 0:01:43]}  Bd6 {[%clk 0:01:40]} 23. Ne5 {[%clk 0:01:11]}  Qe7 {[%clk 0:01:21]} 24. Nc6 {[%clk 0:01:04]}  Qf6 {[%clk 0:01:04]} 25. Nxd4 {[%clk 0:01:00]}  hxg3 {[%clk 0:01:03]} 26. Nxe6+ {[%clk 0:00:58]}  fxe6 {[%clk 0:00:54]} 27. Rxd6 {[%clk 0:00:53]}  gxf2+ {[%clk 0:00:51]} 28. Kxf2 {[%clk 0:00:54]}  Rxh2 {[%clk 0:00:45]} 29. Qg3 {[%clk 0:00:48]}  Qxb2+ {[%clk 0:00:41]} 30. Re2 {[%clk 0:00:45]}  Qh8 {[%clk 0:00:35]} 31. Rdxe6 {[%clk 0:00:45]}  Qh4 {[%clk 0:00:28]} 32. Qxh4 {[%clk 0:00:43]}  Rxh4 {[%clk 0:00:28]} 33. Bd5 {[%clk 0:00:43]}  Rb8 {[%clk 0:00:23]} 34. Rf6+ {[%clk 0:00:40]}  Kg7 {[%clk 0:00:23]} 35. Rxf5 {[%clk 0:00:41]} 1-0


[Site "https://www.chess.com"]